[Event "Early-Titled-Tuesday-Blitz-March-19-2024"]
[Site "Chess.com"]
[Date "2024.03.19"]
[Round "4"]
[White "Chernov_Alexander_A"]
[Black "bennyficial"]
[Result "0-1"]
[WhiteElo "2303"]
[BlackElo "2125"]
[TimeControl "180+1"]
[EndTime "8:40:34 PDT"]
[Termination "bennyficial won on time"]

1. d4 {[%clk 0:02:55.3]} 1... Nf6 {[%clk 0:02:59.4]} 2. Nc3 {[%clk 0:02:54.8]}
2... d5 {[%clk 0:02:57.9]} 3. Bg5 {[%clk 0:02:54.5]} 3... c5 {[%clk 0:02:57.3]}
4. e3 {[%clk 0:02:53.3]} 4... e6 {[%clk 0:02:49.9]} 5. Nf3 {[%clk 0:02:53.1]}
5... Nc6 {[%clk 0:02:44.6]} 6. Bb5 {[%clk 0:02:50.2]} 6... h6 {[%clk 0:02:43.4]}
7. Bh4 {[%clk 0:02:48.6]} 7... Be7 {[%clk 0:02:34.8]} 8. O-O {[%clk 0:02:42.9]}
8... O-O {[%clk 0:02:32.1]} 9. Ne5 {[%clk 0:02:41.9]} 9... Nxe5 {[%clk
0:02:25.2]} 10. dxe5 {[%clk 0:02:40.8]} 10... Nh7 {[%clk 0:02:10.1]} 11. Bg3
{[%clk 0:02:39.5]} 11... f5 {[%clk 0:01:57.8]} 12. Be2 {[%clk 0:02:23.5]} 12...
Bd7 {[%clk 0:01:54.7]} 13. f4 {[%clk 0:02:23]} 13... Bc6 {[%clk 0:01:48.6]} 14.
h3 {[%clk 0:02:20]} 14... d4 {[%clk 0:01:45.6]} 15. exd4 {[%clk 0:02:09.9]}
15... Qxd4+ {[%clk 0:01:44.9]} 16. Kh2 {[%clk 0:01:57.9]} 16... Qb4 {[%clk
0:01:26.5]} 17. Rb1 {[%clk 0:01:39.2]} 17... Rfd8 {[%clk 0:01:22.4]} 18. Qe1
{[%clk 0:01:38.2]} 18... Nf8 {[%clk 0:01:11]} 19. a3 {[%clk 0:01:35]} 19... Qb6
{[%clk 0:01:06.4]} 20. Bf2 {[%clk 0:01:33.8]} 20... Qc7 {[%clk 0:01:04.9]} 21.
Rd1 {[%clk 0:01:17.9]} 21... a6 {[%clk 0:01:04.9]} 22. Be3 {[%clk 0:01:07.5]}
22... b5 {[%clk 0:01:02.8]} 23. Qf2 {[%clk 0:01:06.8]} 23... b4 {[%clk
0:00:55.5]} 24. Nb1 {[%clk 0:01:03.9]} 24... Qb7 {[%clk 0:00:49.8]} 25. Nd2
{[%clk 0:00:58.8]} 25... Rac8 {[%clk 0:00:39.2]} 26. Nc4 {[%clk 0:00:57.7]}
26... Bd5 {[%clk 0:00:35.4]} 27. axb4 {[%clk 0:00:55.3]} 27... cxb4 {[%clk
0:00:35.2]} 28. b3 {[%clk 0:00:55.3]} 28... Nd7 {[%clk 0:00:27.6]} 29. Bd3
{[%clk 0:00:50.6]} 29... Nc5 {[%clk 0:00:20]} 30. Rg1 {[%clk 0:00:47.6]} 30...
Nxd3 {[%clk 0:00:19.2]} 31. cxd3 {[%clk 0:00:47]} 31... Qc7 {[%clk 0:00:16.5]}
32. g4 {[%clk 0:00:42.8]} 32... fxg4 {[%clk 0:00:15.2]} 33. Rxg4 {[%clk
0:00:41.4]} 33... Bc5 {[%clk 0:00:15.3]} 34. Rdg1 {[%clk 0:00:39]} 34... Bxe3
{[%clk 0:00:14.6]} 35. Qxe3 {[%clk 0:00:32]} 35... Rd7 {[%clk 0:00:13.5]} 36. h4
{[%clk 0:00:26.7]} 36... Qc5 {[%clk 0:00:13.3]} 37. Qg3 {[%clk 0:00:25.7]} 37...
Rcc7 {[%clk 0:00:12.7]} 38. h5 {[%clk 0:00:18.9]} 38... Bxc4 {[%clk 0:00:12.2]}
39. dxc4 {[%clk 0:00:17.1]} 39... Rd2+ {[%clk 0:00:11]} 40. Kh3 {[%clk
0:00:15.2]} 40... Qe7 {[%clk 0:00:11.6]} 41. Rg6 {[%clk 0:00:11.8]} 41... Kh8
{[%clk 0:00:10.6]} 42. Qg4 {[%clk 0:00:11.5]} 42... Rd3+ {[%clk 0:00:09.5]} 43.
Rg3 {[%clk 0:00:10.7]} 43... Rxg3+ {[%clk 0:00:08.7]} 44. Qxg3 {[%clk
0:00:10.6]} 44... Rd7 {[%clk 0:00:09.1]} 45. Qg4 {[%clk 0:00:10.1]} 45... Qd8
{[%clk 0:00:09.1]} 46. Qxe6 {[%clk 0:00:08.6]} 46... Rd3+ {[%clk 0:00:09.3]} 47.
Kg4 {[%clk 0:00:08.5]} 47... Qf8 {[%clk 0:00:08.1]} 48. f5 {[%clk 0:00:03.9]}
48... Rd4+ {[%clk 0:00:08]} 49. Kf3 {[%clk 0:00:03.2]} 49... Rd3+ {[%clk
0:00:07.7]} 50. Ke4 {[%clk 0:00:03.1]} 50... Rxb3 {[%clk 0:00:07.6]} 51. f6
{[%clk 0:00:03.1]} 51... Qa8+ {[%clk 0:00:07.1]} 0-1

[Event "Early-Titled-Tuesday-Blitz-March-19-2024"]
[Site "Chess.com"]
[Date "2024.03.19"]
[Round "4"]
[White "Durarbayli"]
[Black "JonaszBaum"]
[Result "1-0"]
[WhiteElo "2995"]
[BlackElo "2734"]
[TimeControl "180+1"]
[EndTime "8:40:36 PDT"]
[Termination "Durarbayli won by resignation"]

1. e4 {[%clk 0:03:00.9]} 1... c5 {[%clk 0:02:59.7]} 2. Nf3 {[%clk 0:03:01]} 2...
Nc6 {[%clk 0:02:59.8]} 3. Bb5 {[%clk 0:02:58]} 3... d6 {[%clk 0:02:59]} 4. O-O
{[%clk 0:02:57.3]} 4... Bd7 {[%clk 0:02:58.5]} 5. Re1 {[%clk 0:02:57.4]} 5... a6
{[%clk 0:02:54.3]} 6. Bf1 {[%clk 0:02:57.1]} 6... Nf6 {[%clk 0:02:52]} 7. c3
{[%clk 0:02:57.5]} 7... Bg4 {[%clk 0:02:51.9]} 8. d4 {[%clk 0:02:56.4]} 8...
cxd4 {[%clk 0:02:48.3]} 9. cxd4 {[%clk 0:02:57.3]} 9... d5 {[%clk 0:02:48.5]}
10. e5 {[%clk 0:02:33.8]} 10... Ng8 {[%clk 0:02:47.5]} 11. Nbd2 {[%clk
0:02:26.2]} 11... e6 {[%clk 0:02:46.6]} 12. h3 {[%clk 0:02:26.2]} 12... Bh5
{[%clk 0:02:41.1]} 13. Nb3 {[%clk 0:02:09.6]} 13... Rc8 {[%clk 0:02:29.1]} 14.
a3 {[%clk 0:02:03.7]} 14... Nge7 {[%clk 0:02:12.5]} 15. Bd3 {[%clk 0:01:52.9]}
15... h6 {[%clk 0:02:02.4]} 16. Be3 {[%clk 0:01:48.2]} 16... Qb6 {[%clk
0:02:01.5]} 17. Rc1 {[%clk 0:01:47.1]} 17... Bg6 {[%clk 0:01:57.3]} 18. Rc3
{[%clk 0:01:44.8]} 18... Bxd3 {[%clk 0:01:53.2]} 19. Qxd3 {[%clk 0:01:45.7]}
19... Ng6 {[%clk 0:01:38.7]} 20. Rec1 {[%clk 0:01:34.8]} 20... Be7 {[%clk
0:01:35]} 21. Qd2 {[%clk 0:01:32.6]} 21... Kd7 {[%clk 0:01:25.8]} 22. Ne1 {[%clk
0:01:27.5]} 22... Na7 {[%clk 0:01:05.5]} 23. Nd3 {[%clk 0:01:22]} 23... Rxc3
{[%clk 0:01:05.4]} 24. Rxc3 {[%clk 0:01:12.3]} 24... Rc8 {[%clk 0:01:05.6]} 25.
Nbc5+ {[%clk 0:01:12.6]} 25... Bxc5 {[%clk 0:01:04.8]} 26. Nxc5+ {[%clk
0:01:13.5]} 26... Ke8 {[%clk 0:01:02.6]} 27. Rb3 {[%clk 0:01:13.7]} 27... Qc6
{[%clk 0:00:34.2]} 28. Rxb7 {[%clk 0:01:09]} 28... Rc7 {[%clk 0:00:34.5]} 29.
Rb8+ {[%clk 0:01:06.3]} 29... Rc8 {[%clk 0:00:33.7]} 30. Rb7 {[%clk 0:01:04.4]}
30... Rc7 {[%clk 0:00:33.9]} 31. Rxc7 {[%clk 0:01:04.8]} 31... Qxc7 {[%clk
0:00:34.8]} 32. Nxa6 {[%clk 0:01:05.2]} 32... Qc4 {[%clk 0:00:33.1]} 33. Nc5
{[%clk 0:01:02.2]} 33... Nc6 {[%clk 0:00:26.3]} 34. b3 {[%clk 0:01:00.2]} 34...
Qb5 {[%clk 0:00:26.3]} 35. a4 {[%clk 0:01:00.5]} 35... Qb6 {[%clk 0:00:22.5]}
36. Qc3 {[%clk 0:01:00.2]} 36... Nge7 {[%clk 0:00:21.2]} 37. g4 {[%clk
0:00:38.1]} 37... Qb4 {[%clk 0:00:16.4]} 38. Qxb4 {[%clk 0:00:37.1]} 38... Nxb4
{[%clk 0:00:17.3]} 39. Kf1 {[%clk 0:00:37]} 39... Nec6 {[%clk 0:00:16.7]} 40.
Ke2 {[%clk 0:00:36.5]} 40... Nc2 {[%clk 0:00:15.8]} 41. Kd3 {[%clk 0:00:36.5]}
41... Ne1+ {[%clk 0:00:16.5]} 42. Kc3 {[%clk 0:00:36.4]} 42... Nf3 {[%clk
0:00:16.4]} 43. b4 {[%clk 0:00:36.2]} 43... Ng1 {[%clk 0:00:09.1]} 44. b5 {[%clk
0:00:36.6]} 44... Na7 {[%clk 0:00:04.3]} 45. h4 {[%clk 0:00:35.6]} 45... Nf3
{[%clk 0:00:04]} 46. h5 {[%clk 0:00:36.2]} 46... g6 {[%clk 0:00:04]} 47. hxg6
{[%clk 0:00:35.8]} 47... fxg6 {[%clk 0:00:04.9]} 48. Nxe6 {[%clk 0:00:33.2]}
48... Kf7 {[%clk 0:00:03.3]} 49. Nc7 {[%clk 0:00:33]} 49... h5 {[%clk
0:00:03.1]} 50. gxh5 {[%clk 0:00:32.8]} 50... gxh5 {[%clk 0:00:04]} 51. b6
{[%clk 0:00:32.4]} 51... Nc6 {[%clk 0:00:04.2]} 52. b7 {[%clk 0:00:32.8]} 52...
h4 {[%clk 0:00:04.2]} 53. e6+ {[%clk 0:00:25.8]} 53... Kf6 {[%clk 0:00:02.5]}
54. a5 {[%clk 0:00:24]} 54... h3 {[%clk 0:00:02.9]} 55. Nxd5+ {[%clk 0:00:24.2]}
55... Kg7 {[%clk 0:00:01.3]} 56. Bf4 {[%clk 0:00:21]} 56... Nfxd4 {[%clk
0:00:01.9]} 57. e7 {[%clk 0:00:18.6]} 57... Ne2+ {[%clk 0:00:01.4]} 58. Kd2
{[%clk 0:00:18.4]} 58... Nxf4 {[%clk 0:00:01.8]} 59. e8=Q {[%clk 0:00:18.4]}
59... Nxd5 {[%clk 0:00:01.7]} 60. Qxc6 {[%clk 0:00:18.3]} 1-0

[Event "Early-Titled-Tuesday-Blitz-March-19-2024"]
[Site "Chess.com"]
[Date "2024.03.19"]
[Round "4"]
[White "GreenPeach24"]
[Black "BashirliSaadat"]
[Result "1-0"]
[WhiteElo "2562"]
[BlackElo "2360"]
[TimeControl "180+1"]
[EndTime "8:40:36 PDT"]
[Termination "GreenPeach24 won by resignation"]

1. e4 {[%clk 0:02:58.4]} 1... c5 {[%clk 0:02:58.9]} 2. Nf3 {[%clk 0:02:58]} 2...
Nc6 {[%clk 0:02:58.8]} 3. Bb5 {[%clk 0:02:57.1]} 3... d6 {[%clk 0:02:58.2]} 4.
d4 {[%clk 0:02:56.2]} 4... cxd4 {[%clk 0:02:56.8]} 5. Qxd4 {[%clk 0:02:57.1]}
5... Bd7 {[%clk 0:02:56.1]} 6. Bxc6 {[%clk 0:02:57.1]} 6... Bxc6 {[%clk
0:02:55.7]} 7. Nc3 {[%clk 0:02:57.7]} 7... Nf6 {[%clk 0:02:53.7]} 8. Bg5 {[%clk
0:02:57.8]} 8... Qa5 {[%clk 0:02:37.8]} 9. O-O-O {[%clk 0:02:54.1]} 9... h6
{[%clk 0:02:34.5]} 10. Bxf6 {[%clk 0:02:50.9]} 10... gxf6 {[%clk 0:02:33.6]} 11.
Kb1 {[%clk 0:02:49.4]} 11... O-O-O {[%clk 0:02:33]} 12. Nd5 {[%clk 0:02:47]}
12... Bxd5 {[%clk 0:02:18.2]} 13. exd5 {[%clk 0:02:45.4]} 13... Kb8 {[%clk
0:02:15.7]} 14. Rhe1 {[%clk 0:02:43.9]} 14... Rg8 {[%clk 0:02:12.2]} 15. g3
{[%clk 0:02:40.2]} 15... Rc8 {[%clk 0:02:05.6]} 16. Nh4 {[%clk 0:02:33.8]} 16...
Qc7 {[%clk 0:01:50]} 17. c3 {[%clk 0:02:28.7]} 17... Qd7 {[%clk 0:01:50.5]} 18.
Qd3 {[%clk 0:02:16.4]} 18... e6 {[%clk 0:01:43.2]} 19. f4 {[%clk 0:02:04.8]}
19... e5 {[%clk 0:01:27.1]} 20. fxe5 {[%clk 0:01:36.8]} 20... fxe5 {[%clk
0:01:24.1]} 21. Rf1 {[%clk 0:01:36.1]} 21... Bg7 {[%clk 0:01:14.8]} 22. Qf5
{[%clk 0:01:33.1]} 22... Qxf5+ {[%clk 0:01:00.1]} 23. Nxf5 {[%clk 0:01:34]}
23... Bf8 {[%clk 0:00:59.9]} 24. Ne3 {[%clk 0:01:25.1]} 24... Rc7 {[%clk
0:00:56.8]} 25. Rf5 {[%clk 0:01:24]} 25... Kc8 {[%clk 0:00:51.7]} 26. Rdf1
{[%clk 0:01:23.5]} 26... Rg7 {[%clk 0:00:52.2]} 27. Kc2 {[%clk 0:01:23.4]} 27...
Kd8 {[%clk 0:00:52.1]} 28. Kd3 {[%clk 0:01:23.9]} 28... Ke8 {[%clk 0:00:51.6]}
29. Ke4 {[%clk 0:01:24.4]} 29... Be7 {[%clk 0:00:49.6]} 30. Rh5 {[%clk
0:01:14.5]} 30... Rg6 {[%clk 0:00:44.5]} 31. Kd3 {[%clk 0:01:01.7]} 31... Bg5
{[%clk 0:00:43.6]} 32. Nf5 {[%clk 0:01:00.8]} 32... Rc5 {[%clk 0:00:35]} 33. c4
{[%clk 0:00:48.1]} 33... b5 {[%clk 0:00:34.2]} 34. b3 {[%clk 0:00:48.2]} 34...
bxc4+ {[%clk 0:00:33.6]} 35. bxc4 {[%clk 0:00:48.2]} 35... e4+ {[%clk
0:00:34.2]} 36. Kc3 {[%clk 0:00:30.9]} 36... Bf6+ {[%clk 0:00:33]} 37. Kb3
{[%clk 0:00:30.5]} 37... Bg5 {[%clk 0:00:24]} 38. Re1 {[%clk 0:00:23.2]} 38...
Rf6 {[%clk 0:00:16.7]} 39. Rxe4+ {[%clk 0:00:22.3]} 39... Kf8 {[%clk 0:00:15.4]}
40. g4 {[%clk 0:00:20.1]} 40... a5 {[%clk 0:00:13.8]} 41. h4 {[%clk 0:00:18.9]}
41... Bd2 {[%clk 0:00:13.8]} 42. a4 {[%clk 0:00:17.9]} 42... Rg6 {[%clk
0:00:12.5]} 43. Kc2 {[%clk 0:00:15.9]} 43... Bb4 {[%clk 0:00:10.4]} 44. Rxh6
{[%clk 0:00:14.7]} 44... Rxh6 {[%clk 0:00:09.1]} 45. Nxh6 {[%clk 0:00:15.3]}
45... Rc8 {[%clk 0:00:04.3]} 46. Nf5 {[%clk 0:00:15.4]} 46... Bc5 {[%clk
0:00:04.1]} 47. h5 {[%clk 0:00:15.4]} 47... Rd8 {[%clk 0:00:04]} 48. h6 {[%clk
0:00:15.5]} 48... Kg8 {[%clk 0:00:04.3]} 49. Re7 {[%clk 0:00:14.7]} 49... Bd4
{[%clk 0:00:04.3]} 50. Nxd4 {[%clk 0:00:12.1]} 50... Kf8 {[%clk 0:00:04.5]} 51.
h7 {[%clk 0:00:10.6]} 51... Kxe7 {[%clk 0:00:04.2]} 52. Nc6+ {[%clk 0:00:11]}
52... Kd7 {[%clk 0:00:03.3]} 53. Nxd8 {[%clk 0:00:11.1]} 53... Kxd8 {[%clk
0:00:04.2]} 54. h8=Q+ {[%clk 0:00:11.5]} 54... Kd7 {[%clk 0:00:04.8]} 55. Qf6
{[%clk 0:00:11.8]} 55... Kc7 {[%clk 0:00:05.7]} 56. g5 {[%clk 0:00:12.2]} 1-0

[Event "Early-Titled-Tuesday-Blitz-March-19-2024"]
[Site "Chess.com"]
[Date "2024.03.19"]
[Round "4"]
[White "RandomNoob04"]
[Black "dropstoneDP"]
[Result "0-1"]
[WhiteElo "2660"]
[BlackElo "2977"]
[TimeControl "180+1"]
[EndTime "8:40:37 PDT"]
[Termination "dropstoneDP won by resignation"]

1. e4 {[%clk 0:03:00.9]} 1... e5 {[%clk 0:02:59.9]} 2. d4 {[%clk 0:03:01.5]}
2... exd4 {[%clk 0:02:59.4]} 3. Qxd4 {[%clk 0:03:02.4]} 3... Nc6 {[%clk
0:02:59.4]} 4. Qe3 {[%clk 0:03:03.1]} 4... Nf6 {[%clk 0:02:59.1]} 5. e5 {[%clk
0:03:03.8]} 5... Ng4 {[%clk 0:02:36.2]} 6. Qe4 {[%clk 0:03:04.7]} 6... d5 {[%clk
0:02:34.1]} 7. exd6+ {[%clk 0:03:05.6]} 7... Be6 {[%clk 0:02:34.2]} 8. Ba6
{[%clk 0:03:06.5]} 8... Nf6 {[%clk 0:01:50.9]} 9. Qa4 {[%clk 0:03:06.9]} 9...
bxa6 {[%clk 0:01:41.4]} 10. Qxc6+ {[%clk 0:03:06.8]} 10... Bd7 {[%clk
0:01:41.9]} 11. Qxc7 {[%clk 0:03:07.4]} 11... Rc8 {[%clk 0:01:31.7]} 12. Qxd8+
{[%clk 0:03:04.8]} 12... Kxd8 {[%clk 0:01:32.6]} 13. Nc3 {[%clk 0:03:02]} 13...
Bxd6 {[%clk 0:01:32.8]} 14. Bg5 {[%clk 0:03:02.4]} 14... Be5 {[%clk 0:01:22.4]}
15. Nge2 {[%clk 0:03:00.3]} 15... Kc7 {[%clk 0:00:59.2]} 16. Bxf6 {[%clk
0:02:53.3]} 16... gxf6 {[%clk 0:00:57.1]} 17. O-O-O {[%clk 0:02:53.9]} 17... Bc6
{[%clk 0:00:53]} 18. f3 {[%clk 0:02:49.7]} 18... Rhg8 {[%clk 0:00:51.7]} 19. Ng3
{[%clk 0:02:19.1]} 19... h5 {[%clk 0:00:47.1]} 20. Nd5+ {[%clk 0:02:02]} 20...
Kb7 {[%clk 0:00:41.7]} 21. Ne7 {[%clk 0:01:45]} 21... h4 {[%clk 0:00:36.2]} 22.
Ngf5 {[%clk 0:01:36.9]} 22... h3 {[%clk 0:00:29.7]} 23. Nxc8 {[%clk 0:01:26.9]}
23... Rxc8 {[%clk 0:00:12.6]} 24. Ne7 {[%clk 0:00:50.6]} 24... hxg2 {[%clk
0:00:05.8]} 25. Rhg1 {[%clk 0:00:51.1]} 25... Bf4+ {[%clk 0:00:03.1]} 26. Kb1
{[%clk 0:00:51.6]} 26... Bxf3 {[%clk 0:00:02.2]} 27. Nxc8 {[%clk 0:00:52.1]}
27... Bxd1 {[%clk 0:00:02.2]} 28. Rxd1 {[%clk 0:00:35.6]} 28... Bxh2 {[%clk
0:00:02.5]} 29. Nd6+ {[%clk 0:00:22.7]} 29... Kc6 {[%clk 0:00:03]} 30. Nxf7
{[%clk 0:00:23.1]} 30... g1=Q {[%clk 0:00:03.7]} 31. Rxg1 {[%clk 0:00:14.3]}
31... Bxg1 {[%clk 0:00:04.6]} 32. c4 {[%clk 0:00:14.7]} 32... Kc5 {[%clk
0:00:03.1]} 33. Kc2 {[%clk 0:00:12.8]} 33... Kxc4 {[%clk 0:00:03.1]} 34. Nd6+
{[%clk 0:00:09.9]} 34... Kd5 {[%clk 0:00:03.5]} 35. Ne8 {[%clk 0:00:04.9]} 35...
f5 {[%clk 0:00:03.2]} 36. Kd3 {[%clk 0:00:05.5]} 36... Bb6 {[%clk 0:00:02.6]}
37. Nf6+ {[%clk 0:00:05.4]} 37... Ke5 {[%clk 0:00:03.2]} 38. Nd7+ {[%clk
0:00:05.8]} 38... Kd6 {[%clk 0:00:03.5]} 39. Nf6 {[%clk 0:00:04.9]} 39... Ke6
{[%clk 0:00:04]} 40. Nh5 {[%clk 0:00:04.8]} 40... Ke5 {[%clk 0:00:04.6]} 41. Ng3
{[%clk 0:00:03.1]} 41... f4 {[%clk 0:00:04.9]} 42. Nf1 {[%clk 0:00:03.8]} 42...
f3 {[%clk 0:00:04.9]} 43. Nd2 {[%clk 0:00:01.5]} 43... Kf4 {[%clk 0:00:05.5]}
44. Nf1 {[%clk 0:00:01.7]} 44... a5 {[%clk 0:00:04.5]} 45. b3 {[%clk 0:00:02.1]}
45... Bc5 {[%clk 0:00:04.5]} 46. a4 {[%clk 0:00:02.3]} 46... Bb4 {[%clk
0:00:04.2]} 47. Kd4 {[%clk 0:00:02.2]} 47... f2 {[%clk 0:00:04]} 48. Kd3 {[%clk
0:00:02.5]} 48... Kf3 {[%clk 0:00:04.5]} 49. Ne3 {[%clk 0:00:03]} 49... Bd6
{[%clk 0:00:03.6]} 50. Nf1 {[%clk 0:00:03.1]} 50... Bf4 {[%clk 0:00:03.8]} 51.
Nd2+ {[%clk 0:00:01.1]} 51... Bxd2 {[%clk 0:00:03.9]} 0-1

[Event "Early-Titled-Tuesday-Blitz-March-19-2024"]
[Site "Chess.com"]
[Date "2024.03.19"]
[Round "4"]
[White "aljado"]
[Black "cthulhuuu"]
[Result "0-1"]
[WhiteElo "2082"]
[BlackElo "2367"]
[TimeControl "180+1"]
[EndTime "8:40:38 PDT"]
[Termination "cthulhuuu won on time"]

1. e4 {[%clk 0:02:17.3]} 1... d6 {[%clk 0:02:58.6]} 2. d4 {[%clk 0:02:16]} 2...
Nf6 {[%clk 0:02:58.9]} 3. Nc3 {[%clk 0:02:14.7]} 3... c6 {[%clk 0:02:59.2]} 4.
Nf3 {[%clk 0:02:14]} 4... Bg4 {[%clk 0:02:58.9]} 5. h3 {[%clk 0:02:12.8]} 5...
Bh5 {[%clk 0:02:58.9]} 6. Bd3 {[%clk 0:02:11.5]} 6... e6 {[%clk 0:02:58.2]} 7.
O-O {[%clk 0:02:10.6]} 7... d5 {[%clk 0:02:58]} 8. e5 {[%clk 0:02:09.4]} 8...
Nfd7 {[%clk 0:02:58.5]} 9. Be3 {[%clk 0:02:05.9]} 9... c5 {[%clk 0:02:58.5]} 10.
Nb5 {[%clk 0:02:00.7]} 10... Nc6 {[%clk 0:02:56.7]} 11. Nd6+ {[%clk 0:01:56.9]}
11... Bxd6 {[%clk 0:02:55.2]} 12. exd6 {[%clk 0:01:57.5]} 12... cxd4 {[%clk
0:02:52.5]} 13. Bf4 {[%clk 0:01:47.6]} 13... e5 {[%clk 0:02:48.7]} 14. g4 {[%clk
0:01:46.8]} 14... Bg6 {[%clk 0:02:47]} 15. Bxg6 {[%clk 0:01:36.7]} 15... hxg6
{[%clk 0:02:46.7]} 16. Nxe5 {[%clk 0:01:34.8]} 16... Ndxe5 {[%clk 0:02:43.1]}
17. Bxe5 {[%clk 0:01:32.9]} 17... Nxe5 {[%clk 0:02:42.4]} 18. Re1 {[%clk
0:01:33.4]} 18... Qxd6 {[%clk 0:02:03.3]} 19. Qxd4 {[%clk 0:01:32.2]} 19... f6
{[%clk 0:01:24.7]} 20. f4 {[%clk 0:01:31.6]} 20... O-O-O {[%clk 0:01:19.9]} 21.
fxe5 {[%clk 0:01:30.6]} 21... fxe5 {[%clk 0:01:19.5]} 22. Rxe5 {[%clk
0:01:16.9]} 22... Rxh3 {[%clk 0:01:15]} 23. Rae1 {[%clk 0:01:09.1]} 23... Kb8
{[%clk 0:00:51.4]} 24. Kg2 {[%clk 0:01:07.7]} 24... Rh4 {[%clk 0:00:28.3]} 25.
Rf1 {[%clk 0:00:45.8]} 25... Rdh8 {[%clk 0:00:25.3]} 26. Rf7 {[%clk 0:00:35.2]}
26... Rh2+ {[%clk 0:00:25.1]} 27. Kg1 {[%clk 0:00:34.1]} 27... Rh1+ {[%clk
0:00:17.8]} 28. Kg2 {[%clk 0:00:34]} 28... R8h2+ {[%clk 0:00:12.9]} 29. Kg3
{[%clk 0:00:33.6]} 29... Re2 {[%clk 0:00:10.4]} 30. Re7 {[%clk 0:00:20.3]} 30...
Rhe1 {[%clk 0:00:09.3]} 31. Re8+ {[%clk 0:00:18.6]} 31... Kc7 {[%clk 0:00:09.5]}
32. Qc3+ {[%clk 0:00:18.2]} 32... Qc6 {[%clk 0:00:06]} 33. Qxc6+ {[%clk
0:00:16.4]} 33... bxc6 {[%clk 0:00:05.1]} 34. Rxe2 {[%clk 0:00:16.9]} 34... Rg1+
{[%clk 0:00:04]} 35. Kh4 {[%clk 0:00:15.2]} 35... Rb1 {[%clk 0:00:02.1]} 36. b3
{[%clk 0:00:13.6]} 36... Kd6 {[%clk 0:00:02.4]} 37. Kg5 {[%clk 0:00:12.1]} 37...
Rb2 {[%clk 0:00:02.6]} 38. R8e6+ {[%clk 0:00:10.4]} 38... Kc5 {[%clk 0:00:02.7]}
39. a3 {[%clk 0:00:09.2]} 39... a5 {[%clk 0:00:03]} 40. Rxg6 {[%clk 0:00:07.4]}
40... d4 {[%clk 0:00:03.1]} 41. Re5+ {[%clk 0:00:06.1]} 41... Kb6 {[%clk
0:00:02.9]} 42. Re2 {[%clk 0:00:04.8]} 42... d3 {[%clk 0:00:03.2]} 43. cxd3
{[%clk 0:00:02.5]} 43... Rxe2 {[%clk 0:00:03.5]} 44. Rxg7 {[%clk 0:00:02.5]}
44... Re3 {[%clk 0:00:03.9]} 45. Rg6 {[%clk 0:00:02]} 45... Rxd3 {[%clk
0:00:04.3]} 46. Kh6 {[%clk 0:00:02.6]} 46... Rxb3 {[%clk 0:00:04.7]} 47. g5
{[%clk 0:00:01.9]} 47... Rxa3 {[%clk 0:00:05.1]} 48. Rf6 {[%clk 0:00:02.1]}
48... Rh3+ {[%clk 0:00:05.2]} 0-1

[Event "Early-Titled-Tuesday-Blitz-March-19-2024"]
[Site "Chess.com"]
[Date "2024.03.19"]
[Round "4"]
[White "TitarovVasiliYouTube"]
[Black "VladimirBugayev"]
[Result "1-0"]
[WhiteElo "2535"]
[BlackElo "2327"]
[TimeControl "180+1"]
[EndTime "8:40:39 PDT"]
[Termination "TitarovVasiliYouTube won on time"]

1. e4 {[%clk 0:03:00.9]} 1... c6 {[%clk 0:02:59.5]} 2. d4 {[%clk 0:03:00.5]}
2... d5 {[%clk 0:02:59.9]} 3. exd5 {[%clk 0:03:01.4]} 3... cxd5 {[%clk
0:03:00.2]} 4. Bd3 {[%clk 0:03:02.1]} 4... Nc6 {[%clk 0:02:59.8]} 5. c3 {[%clk
0:03:02.5]} 5... Nf6 {[%clk 0:02:59.3]} 6. Nf3 {[%clk 0:03:02.8]} 6... Bg4
{[%clk 0:02:54.9]} 7. Be3 {[%clk 0:03:02.6]} 7... e6 {[%clk 0:02:55.1]} 8. Nbd2
{[%clk 0:03:02.8]} 8... Bd6 {[%clk 0:02:53.2]} 9. O-O {[%clk 0:03:03.4]} 9...
O-O {[%clk 0:02:53.2]} 10. Qc2 {[%clk 0:03:03.7]} 10... Bxf3 {[%clk 0:02:46.9]}
11. Nxf3 {[%clk 0:03:04.6]} 11... Rc8 {[%clk 0:02:46.9]} 12. a3 {[%clk
0:03:04.4]} 12... h6 {[%clk 0:02:34.7]} 13. Qc1 {[%clk 0:02:59]} 13... Ng4
{[%clk 0:02:32]} 14. Bd2 {[%clk 0:02:57.7]} 14... e5 {[%clk 0:02:32]} 15. Bf5
{[%clk 0:02:53.5]} 15... e4 {[%clk 0:02:21.2]} 16. Bxg4 {[%clk 0:02:53.6]} 16...
exf3 {[%clk 0:02:21.2]} 17. Bxf3 {[%clk 0:02:54.5]} 17... Nxd4 {[%clk
0:02:15.9]} 18. Bd1 {[%clk 0:02:44.1]} 18... Qh4 {[%clk 0:01:54.1]} 19. g3
{[%clk 0:02:39.9]} 19... Qf6 {[%clk 0:01:54.6]} 20. Be3 {[%clk 0:02:27.2]} 20...
Nc6 {[%clk 0:01:40.8]} 21. Qd2 {[%clk 0:02:22.8]} 21... Rfd8 {[%clk 0:01:38.8]}
22. Bg4 {[%clk 0:02:19.2]} 22... Rc7 {[%clk 0:01:36.4]} 23. Be2 {[%clk
0:01:56.1]} 23... Be5 {[%clk 0:01:19.1]} 24. f4 {[%clk 0:01:44.3]} 24... Bd6
{[%clk 0:01:18.5]} 25. Rad1 {[%clk 0:01:43.7]} 25... Be7 {[%clk 0:01:09.7]} 26.
Bf3 {[%clk 0:01:41.2]} 26... Rcd7 {[%clk 0:01:04.7]} 27. Qg2 {[%clk 0:01:36.4]}
27... Na5 {[%clk 0:00:45.7]} 28. Rxd5 {[%clk 0:01:32.9]} 28... Nc4 {[%clk
0:00:44]} 29. Bd4 {[%clk 0:01:29.7]} 29... Qe6 {[%clk 0:00:31.3]} 30. Rxd7
{[%clk 0:01:29.2]} 30... Rxd7 {[%clk 0:00:30.8]} 31. Bxb7 {[%clk 0:01:24.1]}
31... Ne3 {[%clk 0:00:22.8]} 32. Re1 {[%clk 0:00:41.7]} 32... Nxg2 {[%clk
0:00:16.6]} 33. Rxe6 {[%clk 0:00:42.6]} 33... fxe6 {[%clk 0:00:15.4]} 34. Bc8
{[%clk 0:00:42.9]} 34... Rd6 {[%clk 0:00:10.5]} 35. Kxg2 {[%clk 0:00:38.8]}
35... Bf6 {[%clk 0:00:10.6]} 36. Bxa7 {[%clk 0:00:34.1]} 36... Rd2+ {[%clk
0:00:09.7]} 37. Kf3 {[%clk 0:00:34.8]} 37... Rxb2 {[%clk 0:00:10.6]} 38. Bxe6+
{[%clk 0:00:35.5]} 38... Kf8 {[%clk 0:00:10]} 39. c4 {[%clk 0:00:33.9]} 39...
Ke8 {[%clk 0:00:07.6]} 40. Bc5 {[%clk 0:00:31.8]} 40... Rxh2 {[%clk 0:00:06.5]}
41. a4 {[%clk 0:00:28.8]} 41... Ra2 {[%clk 0:00:05.5]} 42. Bd5 {[%clk
0:00:22.4]} 42... Be7 {[%clk 0:00:05.6]} 43. Bc6+ {[%clk 0:00:20.8]} 43... Kd8
{[%clk 0:00:05.1]} 44. Bb6+ {[%clk 0:00:20.4]} 44... Kc8 {[%clk 0:00:04.4]} 45.
a5 {[%clk 0:00:21.2]} 45... Bb4 {[%clk 0:00:02.9]} 46. Bd4 {[%clk 0:00:16.7]}
46... Bxa5 {[%clk 0:00:03]} 47. Bxg7 {[%clk 0:00:17.1]} 47... Ra3+ {[%clk
0:00:02]} 48. Kg4 {[%clk 0:00:15.5]} 48... Be1 {[%clk 0:00:02.5]} 49. Bxh6
{[%clk 0:00:13.2]} 49... Rxg3+ {[%clk 0:00:03]} 50. Kf5 {[%clk 0:00:13.7]} 50...
Rc3 {[%clk 0:00:03.1]} 51. Bd5 {[%clk 0:00:13.6]} 51... Kc7 {[%clk 0:00:02.5]}
52. Bg7 {[%clk 0:00:13.9]} 52... Bd2 {[%clk 0:00:01.5]} 53. Bxc3 {[%clk
0:00:12.9]} 53... Bxc3 {[%clk 0:00:01.8]} 54. Ke6 {[%clk 0:00:13.5]} 54... Kb6
{[%clk 0:00:01.7]} 55. f5 {[%clk 0:00:13.1]} 1-0